{"text_format":"1","workbook":"xlsx","n_sheets":4,"sheets":[" MATRIZ PLAN DE ACCION","Hoja1","INSTRUCCIONES","Hoja2"],"not_rendered":{"charts":0,"images":1,"macros":1,"external_links":0,"defined_names":7,"comments":2,"pivot_tables":0},"unopened":[],"bounds":{"document_bytes":16777216,"sheet_cells":100000,"rows_first":2000,"rows_last":500,"rows_between":2000,"halvings":0,"cell_chars":16384,"cell_head_chars":4096},"cells_cut":0,"cells_raw":0,"read":"whole","date_system":"1900"}

{"sheet":" MATRIZ PLAN DE ACCION","index":0,"n_rows":30,"n_cols":33,"rows_kept":30,"cut":false,"hidden":false,"merged":[[3,0,4,0],[1,15,1,32],[3,15,4,15],[3,16,4,16],[3,28,3,29],[3,30,3,31],[3,24,3,25],[2,30,2,32],[3,27,4,27],[3,22,3,23],[3,21,4,21],[3,1,4,1],[3,2,4,2],[3,3,4,3],[3,4,4,4],[3,8,4,8],[3,9,4,9],[3,17,3,18],[3,20,4,20],[3,10,4,10],[3,11,4,11],[3,12,4,12],[2,28,2,29],[2,22,2,27],[0,16,0,18],[0,19,0,20],[0,22,0,23],[0,25,0,27],[0,28,0,31],[0,0,0,1],[0,2,0,8],[2,15,2,21],[0,10,0,14],[2,0,2,7],[1,2,1,14],[1,0,1,1],[2,8,2,14],[24,0,29,1],[24,2,24,3],[25,2,25,3],[26,2,26,3],[27,2,27,3],[29,2,29,3],[22,15,22,16],[28,2,28,3],[24,23,29,24],[24,25,24,26],[25,25,25,26],[26,25,26,26],[27,25,27,26],[28,25,28,26],[29,25,29,26],[24,15,24,16],[25,15,25,16],[26,15,26,16],[22,4,22,7],[29,17,29,22],[22,30,22,31],[27,15,27,16],[28,15,28,16],[29,15,29,16],[24,4,24,8],[25,4,25,8],[26,4,26,8],[27,4,27,8],[28,4,28,8],[29,4,29,8],[24,10,24,14],[25,10,25,14],[26,10,26,14],[27,10,27,14],[28,10,28,14],[29,10,29,14],[29,27,29,32],[24,17,24,22],[25,17,25,22],[26,17,26,22],[27,17,27,22],[28,17,28,22],[24,27,24,32],[25,27,25,32],[26,27,26,32],[27,27,27,32],[28,27,28,32]]}
["ENTIDAD ",null,"INSTITUTO_DE_DEPORTE_Y_RECREACIÓN_IMDER",null,null,null,null,null,null,"SECTOR","N.A.",null,null,null,null,"VIGENCIA",2020,null,null,"FORMULACION",null,null,"SEGUIMIENTO",null,"X","PERIODO DE SEGUIIENTO",null,null,"JULIO A SEPTIEMBRE"]
[null,null,"Utilice este boton solo cuando necesite agregar mas filas."]
["IDENTIFICACION CON EL PLAN DE DESARROLLO 2020 20XX",null,null,null,null,null,null,null,"INFORMACION DEL PROYECTO",null,null,null,null,null,null,"INFORMACION FISICA DEL PROYECTO",null,null,null,null,null,null,"INFORMACION FINANCIERA DEL PROYECTO",null,null,null,null,null,"INFORMACION POBLACION ",null,"INFORMACION INSTITUCIONAL DEL PROYECTO"]
["EJE ESTRATEGICO"," PROGRAMA","SUBPROGRAMA","META PDM","NOMBRE DEL INDICADOR META PRODUCTO PDM \n","CANTIDAD PROGRAMADA PARA LA VIGENCIA    (QP)","CANTIDAD EJECUTADA PARA LA VIGENCIA   (QE)","% AVANCE DE EJECUCIÓN META PDM VIGENCIA","Nº REGISTRO BPPV  ","NOMBRE DEL  PROYECTO REGISTRADO","OBJETIVO","ESTRATEGIA","ESTADO DEL PROYECTO","FECHA DE INICIO DE EJECUCION DEL PROYECTO VIGENCIA","FECHA DE TERMINACION DE EJECUCION DEL PROYECTO VIGENCIA ","NOMBRE DEL INDICADOR  DEL PROYECTO","UNIDAD DE MEDIDA","MEDICIÓN INDICADOR DEL PROYECTO",null,"% INDICE DE AVANCE FISICO (b) * 100 /(a)","JUSTIFICACIÓN DE AVANCE DEL PROYECTO ","VALOR PRESUPUESTO INICIAL","PROGRAMACION PRESUPUESTAL",null,"EJECUCION PRESUPUESTAL",null,"%  INDICE DE AVANCE FINANCIERO          (ep)*100/ (pi)","JUSTIICACION AVACE FINANCIERO","POBLACION BENEFICIADA Y/O ATENDIDA ",null,"RESPONSABLES",null,"OBSERVACIONES AL PROYECTO "]
[null,null,null,null,null,2020,2020,2020,null,null,null,null,null,2020,2020,null,null,"CANTIDAD PROGRAMADA (a)       ","CANTIDAD EJECUTADA (b) ","     (ifc )",null,null,"VALOR $      (pi)","FUENTE DE FINANCIACION","VALOR $     ( ep )","FUENTE DE FINANCIACION","(iep)",null,"UNIDAD","CANTIDAD","ENTIDAD \nEJECUTORA","COORDINADO CON OTRA ENTIDAD",2020]
[1,2,3,4,5,6,7,8,9,10,11,12,13,14,15,16,17,18,19,20,21,22,23,24,25,26,27,28,29,30,31,32,33]
["CIUDAD GARANTE DE DERECHOS","CIUDAD ACTIVA","N/A","(221) Promover la actividad física, la recreación y el deporte con enfoque diferencial y de género en Villavicencio","Personas beneficiadas por los programas de la actividad física, recreación y deporte con enfoque diferencial",10000,144462,{"$f":"IF(F7=0,\"0\",IFERROR(G7/F7,0))","v":14.446199999999999},"2016-050001-0056","DESARROLLO DE ACTIVIDADES FISICAS, DEPORTIVAS Y DE RECREACION COMUNITARIA EN EL MUNICIPIO DE VILLAVICENCIO, META, ORINOQUIA","\nPromover y realizar actividades físicas deportivas y de recreación comunitaria para el mejoramiento de los hábitos y estilos de vida saludable","\nPuesta en marcha de actividades regulares en los diferentes segmentos poblacionales mediante programas tales como: sin limites (población con funcionalidad diversa), reclusión, recreovia, actividad física para la salud, juego y estimulación para la vida (primera infancia).","EJECUCION","2020-02-11","2020-12-13","Personas Inscritas en el Programa","Numero",10000,36877,{"$f":"IF(R7=0,\"0\",IFERROR(S7/R7,0))","v":3.6877},"Se ha hecho la apetura de 3 Recreovias beneficiando a la poblacion asi:  \nAfro: 298 \nLGTBI: 579\nIndigena: 412\nrumba aeróbica en vivo (64 trasmisiones) interacciones: 117.423   \nrumba a la calle y caravanas de la vida (103 barrios visitados) 25.750 entre niños y adultos",691978297,691978297,"413,440,088 (90)\n341769,998 (33)\n26,768,211\n Impuesto Telefonia Movil\n",165899998,"$165,899,998 (90)\n",{"$f":"IF(Y7=0,\"0\",IFERROR(Y7/W7,0))","v":0.23974740063271088},"De acuerdo a los tres componentes que contempla el proyecto se ha logrado una ejecución financiera del 66,7%","PERSONAS",36877,"INSTITUTO MUNICIPAL DE DEPORTE Y RECREACIÓN DE VILLAVICENCIO - IMDER","N/A","N/A"]
["CIUDAD GARANTE DE DERECHOS","CIUDAD ACTIVA","N/A","(222) Realizar eventos recreativos y deportivos con la participación sectorial y comunitaria bajo el enfoque inclusivo, diferencial y de género de acuerdo con la política pública del deporte","Eventos recreativos y deportivos comunitarios realizados",3,1,{"$f":"IF(F8=0,\"0\",IFERROR(G8/F8,0))","v":0.33333333333333331},"2016-050001-0038","DESARROLLO DE LOS JUEGOS SECTORIALES DEPORTIVOS EN EL MUNICIPIO DE VILLAVICENCIO, META, ORINOQUIA.","Realizar los juegos sectoriales deportivos en el municipio de villavicencio.","Apoyo y realización de eventos deportivos buscando la interacción y beneficio de los diferentes grupos poblacionales.","EJECUCION","2020-02-06","2020-10-16","Eventos de Participacion Realizados","Numero",10,1,{"$f":"IF(R8=0,\"0\",IFERROR(S8/R8,0))","v":0.1},"Se ha Contribuido con el  aprovechamiento del tiempo libre mediante la organizacion  de eventos deportivos, en donde se promuevan actitudes de convivencia, juego limpio a través de encuentros deportivos libre de toda violencia, con la participación sectorial y comunitaria bajo el enfoque inclusivo, diferencial y de género",970500000,970500000,"$ 170,500,000(90)\n$ 166,666,670 (92)\n$ 600,000,000(33)\n\n",157210293,"$20,000,000 (90)\n$127,210,293 (33)\n$10,000,000 (92)\n\n",{"$f":"IF(Y8=0,\"0\",IFERROR(Y8/W9,0))","v":0.13242745256964547},"De acuerdo a los componentes del proyecto se ha ejecutado un 18,8% debido a las condiciones de pandemia que retraso la ejecución de metas.","PERSONAS",200,"INSTITUTO MUNICIPAL DE DEPORTE Y RECREACIÓN DE VILLAVICENCIO - IMDER","N/A","N/A"]
["CIUDAD GARANTE DE DERECHOS","CIUDAD ACTIVA","N/A","(223) Implementar escuelas de formación deportiva, deporte comunitario y deporte alternativo con enfoque de género, étnico y diferencial en Villavicencio","Escuelas de formación deportiva, deporte alternativo y comunitario implementadas",10,14,1.4,"2016-050001-0052","FORTALECIMIENTO DE LAS ESCUELAS POPULARES DE FORMACION DEPORTIVA EN EL MUNICIPIO DE VILLAVICENCIO, META, ORINOQUIA","Incentivar y promover la vinculación de los niños, niñas y jóvenes del municipio de villavicencio en los diferentes programas institucionales","1.Implementación de escuelas de formación deportiva en los diferentes sectores de la ciudad, priorizando los barrios con mayores necesidades.\n2. Culturizar a la comunidad sobre la importancia del deporte por medio del Fortalecimiento de las Escuelas de Formación del Municipio de Villavicencio.\n3.realización del torneo interclubes \"unidos por el deporte\", buscando el fortalecimiento y  la masificación de las escuelas de formación.","EJECUCION","2020-02-06","2020-12-29","Actividad de Condicion Fisica Realizas","Numero",15,14,0.93333333333333335,"Escuelas de Iniciacion Deportiva en Centro de Educacion deportivas en el Sector Ubano: 8 ecuelas de formacion deprotivo en el sector urbano en los siguientes deportes\n2 artes marciales, 2 de boxeo, 2 futbol y 2 de futbol de salon.\nEscuelas de Iniciacion Deportiva en Centro de Educacion deportivas en el Sector Rural:  6 escuelas de formacion deportiva en el sector rural, resguardo indigena de maguare, vereda las mercedes, en la vereda la cuncia, el amor, la cecilia en los isguients deportes  en futbol de salon",1187142771,1187142771,"$360,000,000 (90)\n$200,000,000 (92)\n$520,000,000 (33)\n$ 107,142,771 Impuesto al Cigarrillo\n\n",512959999,"$150,000,000 (90)\n$321,246,667 (33)\n$12,500,000 (92)\n$29,213,332 Impuesto Cigarrillo\n",{"$f":"IF(Y9=0,\"0\",IFERROR(Y9/#REF!,0))","v":0},"De acuerdo a los tres componentes que contempla el proyecto se ha logrado una ejecución financiera del 61,29%","PERSONAS",31195,"INSTITUTO MUNICIPAL DE DEPORTE Y RECREACIÓN DE VILLAVICENCIO - IMDER","N/A","N/A"]
["CIUDAD GARANTE DE DERECHOS","CIUDAD ACTIVA","N/A","(225) Fortalecer la actividad física y el deporte en las instituciones educativas","Instituciones educativas beneficiadas",10,12,{"$f":"IF(F10=0,\"0\",IFERROR(G10/F10,0))","v":1.2},"2016-050001-0056","DESARROLLO DE ACTIVIDADES FISICAS, DEPORTIVAS Y DE RECREACION COMUNITARIA EN EL MUNICIPIO DE VILLAVICENCIO, META, ORINOQUIA","\nPromover y realizar actividades físicas deportivas y de recreación comunitaria para el mejoramiento de los hábitos y estilos de vida saludable","\nPuesta en marcha de actividades regulares en los diferentes segmentos poblacionales mediante programas tales como: sin limites (población con funcionalidad diversa), reclusión, recreovia, actividad física para la salud, juego y estimulación para la vida (primera infancia).","EJECUCION","2020-02-11","2020-12-13","Actividad de Condicion Fisica Realizas","Numero",100000,45000,0.45,"En la ejecucion del proyecto se ha logrado atender 35 Instituciones Oficiales del Municipaio de Villaviencio, mediante el desarrolla de actividades fisicas y recreativas Virtuales, teniendo en cuenta el escenario de la pandemia COVID-19.",270000000,270000000,"170,000,000 (33)\n100,000,000 (90)\n",66452687,"$10,000,000 (90)\n$56,452,687 (33)",{"$f":"IF(Y10=0,\"0\",IFERROR(Y10/W10,0))","v":0.24612106296296296},"De acuerdo a los tres componentes del proyecto se ha logrado ejecutar un 66,7 % del presupuesto definitivo asignado para la vigencia 2020.","PERSONAS",4092,"INSTITUTO MUNICIPAL DE DEPORTE Y RECREACIÓN DE VILLAVICENCIO - IMDER","N/A","N/A"]
["CIUDAD GARANTE DE DERECHOS","CIUDAD ACTIVA","N/A","(226) Establecer alianzas con instituciones de educación para la profesionalización del deporte","Número de alianzas con instituciones de educación establecidas",0,2,"0","2016-050001-005","APORTES A LOS PROCESOS DE ORGANIZACIONES SOCIALES Y  DEPORTIVAS EN EL MUNICIPIO DE VILLAVICENCIO, META, ORINOQUIA","Suscribir mecanismos de apoyo que permitan el desarrollo del deporte en las diferentes categorías","Establecer Convenios para la profesionalizacion del deporte.","EJECUCION","2020-02-06","2020-12-13","Apoyo Interistitucional","Numero",4,2,0.5,"Se logro avanza mediante la realizacion de dos (2) convenio con la Universidad de los Llanos y la Universidad COOPERATIVA, sin uso de recurso solo gestion a traves del Talento Humano del Instituto.",0,0,0,0,0,"0","Se logrado avanzar en la meta debido a que se realizado gestion con el talento humano que interactua en la vigencia en el Instituto.","NUMERO",2,"INSTITUTO MUNICIPAL DE DEPORTE Y RECREACIÓN DE VILLAVICENCIO - IMDER","N/A","Se logro avanza mediante la realizacion de dos (2) convenio con la Universidad de los Llanos y la Universidad COOPERATIVA, sin uso de recurso solo gestion a traves del Talento Humano del Instituto."]
[null,null,null,null,null,null,null,"0",null,null,null,null,null,null,null,null,null,null,null,"0",null,null,null,null,null,null,"0"]
["CIUDAD GARANTE DE DERECHOS","CIUDAD ACTIVA","N/A","(227) Otorgar incentivos a los deportistas que hayan representado al municipio en competiciones nacionales e internacionales, obteniendo una gran figuración deportiva","Número de incentivos otorgados",4,4,1,"2016-050001-005","APORTES A LOS PROCESOS DE ORGANIZACIONES SOCIALES Y  DEPORTIVAS EN EL MUNICIPIO DE VILLAVICENCIO, META, ORINOQUIA","Suscribir mecanismos de apoyo que permitan el desarrollo del deporte en las diferentes categorías","1.Acompañamiento y asesoramiento a la población en el proceso de adquisición de reconocimientos y renovaciones a los clubes deportivos del municipio.\n2.Apoyo financiero a deportistas destacados en la participación de eventos de orden nacional ","EJECUCION","2020-02-06","2020-12-13","Apoyo Interistitucional","Numero",1,0.72,0.72,"El Instituto Municipal de Deporte y Recreación IMDER cumple con lo establecido del Acuerdo Municipal 320 del 2016, se realizó el evento de premiación de los incentivos económicos a los tres mejores deportistas del municipio de Villavicencio “GRAMALOTE ORO, PLATA Y BRONCE”, GRAMALOTE ESPECIAL (Para deportistas con discapacidad, GRAMALOTE TODA UNA VIDA (Persona que han hecho historia desde la como deportista y/o formador del deporte dejando en alto el nivel del deporta municipal, departamento, nacional e internacional. Esta premiación corresponde a la vigencia inmediatamente anterior.",84000000,84000000,"84,000,000 (33)",21531016,"21,531,016(33)",0.25632161904761902,"El Instituto Municipal de Deporte y Recreación IMDER cumple con lo establecido del Acuerdo Municipal 320 del 2016, se realizó el evento de premiación de los incentivos económicos a los tres mejores deportistas del municipio de Villavicencio “GRAMALOTE ORO, PLATA Y BRONCE”, GRAMALOTE ESPECIAL (Para deportistas con discapacidad, GRAMALOTE TODA UNA VIDA (Persona que han hecho historia desde la como deportista y/o formador del deporte dejando en alto el nivel del deporta municipal, departamento, nacional e internacional. Esta premiación corresponde a la vigencia inmediatamente anterior.","PERSONAS",4,"INSTITUTO MUNICIPAL DE DEPORTE Y RECREACIÓN DE VILLAVICENCIO - IMDER","N/A","N/A"]
["CIUDAD GARANTE DE DERECHOS","CIUDAD ACTIVA","N/A","(228) Apoyar los organismos deportivos a través de medios físicos y virtuales","Organismos deportivos apoyados",45,25,{"$f":"IF(F14=0,\"0\",IFERROR(G14/F14,0))","v":0.55555555555555558},"2016-050001-0052","APORTES A LOS PROCESOS DE ORGANIZACIONES SOCIALES Y  DEPORTIVAS EN EL MUNICIPIO DE VILLAVICENCIO, META, ORINOQUIA","Suscribir mecanismos de apoyo que permitan el desarrollo del deporte en las diferentes categorías","1.Acompañamiento y asesoramiento a la población en el proceso de adquisición de reconocimientos y renovaciones a los clubes deportivos del municipio.\n2.Apoyo financiero a deportistas destacados en la participación de eventos de orden nacional ","EJECUCION","2020-02-06","2020-12-13","Actividad de Condicion Fisica Realizas","Numero",45,25,0.55555555555555558,"El Programa de Organizaciones Sociales a traves del equipo profesional del area a venido asesorando, recepcionando y dando solución a los respectivos requerimientos que las entidades deportivas y no deportivas del deporte asociado a  solicitado. A su vez  a venido realizando visitas tecnicas, evaluación y seguimiento a las deiferentes entidades deportivas para realizar el proceso de legalizacion y asi otrogar el reconocimiento deportivo. Hasta la fecha se ha logrado dar reconocimiento deportivo a 25 nuevos clubes en la ciudad.  ",536000000,536000000,"310,000,000 (90) \n226,000,000 (33)\n",285839998,"129,100,000 (90)\n156,739,998 (33)",0.53328357835820894,"Dentro del componente del proeeco aporte a los proceso de orgnaizaciones sociales y deportivas del municipio  de villavicencion se establece se asigna un recurso al compoenente denominado apoyo a organizaciones deportivas sociales institucional y Ongs con una ejecucion presupuestal del 53,32%","NUMERO",25,"INSTITUTO MUNICIPAL DE DEPORTE Y RECREACIÓN DE VILLAVICENCIO - IMDER","N/A","N/A"]
["CIUDAD GARANTE DE DERECHOS","CIUDAD ACTIVA","N/A","(229) Fortalecer el Observatorio del Deporte en alianza con universidades","Observatorio del deporte fortalecido",1,0.1,0.1,"2016-050001-180","FORTALECIMIENTO DEL OBSERVATORIO DEL DEPORTE RECREACION, ACTIVIDAD FISICA Y EDUCACION FISICA EN MUNICIPIO DE VILLAVICENCIO","Fortalecer el observatorio del sector deporte, recreación, actividad física y educación física de la ciudad de Villavicencio","Consolidación, análisis de datos que contribuyan al cumplimiento de la política pública y permita tomar decisiones encaminadas a las estrategias del sector.","EJECUCION","2020-02-06","2020-12-01","Observatorios con asistencia tecnica y acompañamiento","Numero",1,0.1,0.1,"Se realiza asistencia tecnica  y consolidacion de datos del Observatorios para las diferentes actividades del proceso misionales del Instituto.",276000000,276000000,"276,000,000 (02)",159236666,"$159,236,666 (02)",0.57694444202898554,"De acuerdo a los  componentes del proyecto se ha ejecutado parcialmente cada uno de ellos logrando una jecucion del 57,7% del presupuesto definitivo.","NUMERO",1,"INSTITUTO MUNICIPAL DE DEPORTE Y RECREACIÓN DE VILLAVICENCIO - IMDER","N/A","N/A"]
["CIUDAD GARANTE DE DERECHOS","CIUDAD ACTIVA","N/A","(230) Implementar la política del deporte, recreación y actividad física con enfoque diferencial y de género","Política del deporte, recreación y actividad física implementada",0,0.22,"0","2016-050001-55","IMPLEMENTACIÓN DE LA POLÍTICA PÚBLICA DEL DEPORTE, LA RECREACIÓN, LA ACTIVIDAD FÍSICA Y LA EDUCACIÓN FÍSICA EN EL MUNICIPIO DE VILLAVICENCIO, META, ORINOQUÍA","Crear e implementar la política pública de la recreación, el deporte, la actividad física y educación física en el municipio de Villavicencio","La política publica se encuentra en la fase de implementación, por lo cual se establece estrategias orientadas para la implementación de las cuatro líneas adoptadas por la entidad.","EJECUCION","2020-09-10","2020-12-20","Lineamientos de Politica elaborados","Numero",1,0.02,0.02,"Lineamientos metodológicos estan elaborados los lineameintos metiodologicos para el area de deportes y actividad fisica, de los lineamientos por proyectos podmeos decir que se han elaborado los de , futbol , futbol salon, futbol playa y boxeo , para el proyecto de escuelas de formacion, se han realizado tes reuniones de prpearcion metodologica para la soiclaizacion de estos lineamientos, y los documentos metodologicos de trabajo que grantizan la calidad de estos procesos,",324000000,324000000,"324,000,000(02)",0,0,"0","No se ha logrado avanzar en la ejecucion del proyecto teniendo en cuenta la emergencia sanitaria declarad por el goboerno Nacional.Los avances realizados se han hecho en gestion, con el recurso humano que cuenta el instituto.","UNIDAD ",1,"INSTITUTO MUNICIPAL DE DEPORTE Y RECREACIÓN DE VILLAVICENCIO - IMDER","N/A","Debido  la pandemia  por el COVID 19, se genero retraso en la iniciacion del proyecto por lo cual se tiene programado la ejecucion de algunos componentes para el cuarto trimestre del presente año."]
["CIUDAD GARANTE DE DERECHOS","CIUDAD ACTIVA","N/A","(233) Realizar mantenimiento y mejoramiento a la infraestructura deportiva, recreativa y administrativa a cargo del IMDER","Infraestructuras deportivas, recreativas y administrativas mejoradas",19,0,0,"2016-050001-156","DOTACIÓN MEJORAMIENTO Y MANTENIMIENTO DE ESCENARIOS DEPORTIVOS Y RECREATIVOS EN EL MUNICIPIO DE VILLAVICENCIO","Ampliar y mejorar la infraestructura deportiva y recreativa","la dotacion, mejoramiento y mantenimiento de los escenarios deportivos y recreativos, se realizara luego de llevar a cabo una cuantificacion de las necesidades particulares de cada espacio.Las siguientes actividades son necesarias para el desarrollo de la dotacion, mejoramiento y mantenimiento de los escenarios deportivos y recreativos:-Dotacion de escenarios deportivos y recreativos.-Mejoramiento de escenarios deportivos y recreativos.-Mantenimiento de los escenarios deportivos y recreativos.-Interventoria tecnica, administrativa y financiera.","SIN EJECUCION","N/A","N/A","Porcentaje de proyectos de infraestructura con dotacion gestionada","Porcentual",25,0,0,"No se ejecutado a la fecha de forma financiera en avance pero en actividades administrativas, se ha logrado definir los criterios para conceder mas 19 convenios solidarios con los presidentes de junta para el mejoramiento de los escenarios deportivos o recreativos que cumplan con los requisitos de la convocatoria.",2694686,538216181.91999996,"$ 214,348,802(90)\n$ 150,000,000 (33)\n$ 173,867,379,04 (92)",null,0,"0","N/A","NUMERO",0,"INSTITUTO MUNICIPAL DE DEPORTE Y RECREACIÓN DE VILLAVICENCIO - IMDER","N/A","No se ejecutado a la fecha de forma financiera en avance pero en actividades administrativas, se ha logrado definir los criterios para conceder mas 19 convenios solidarios con los presidentes de junta para el mejoramiento de los escenarios deportivos o recreativos que cumplan con los requisitos de la convocatoria."]
[null,null,null,null,null,null,null,"0",null,null,null,null,null,null,null,null,null,null,null,"0",null,null,null,null,null,null,"0"]
[null,null,null,null,null,null,null,"0",null,null,null,null,null,null,null,null,null,null,null,"0",null,null,null,null,null,null,"0"]
[null,null,null,null,null,null,null,"0",null,null,null,null,null,null,null,null,null,null,null,"0",null,null,null,null,null,null,"0"]
[null,null,null,null,null,null,null,"0",null,null,null,null,null,null,null,null,null,null,null,"0",null,null,null,null,null,null,"0",null,null,{"$f":"#REF!+#REF!","v":{"$error":"#REF!"}}]
[null,null,null,null,null,null,null,"0",null,null,null,null,null,null,null,null,null,null,null,"0",null,null,null,null,null,null,"0",null,null,{"$f":"#REF!+#REF!","v":{"$error":"#REF!"}}]
["TOTAL ",null,null,null,null,null,null,null,null,null,null,null,null,null,null,null,null,{"$f":"SUM(R7:R21)","v":110102},{"$f":"SUM(S7:S21)","v":81919.840000000011},0.74403589398921011,null,null,{"$f":"SUM(W7:W21)","v":4877837249.9200001},null,{"$f":"SUM(Y7:Y21)","v":1369130657},null,0.28068395619850883,null,null,{"$f":"SUM(AD7:AD19)","v":72397}]
[]
["CONTROL DE FIRMAS",null,"FIRMA DE QUIEN ELABORÓ",null,null,null,null,null,null,"FIRMA DE QUIEN REVISÓ",null,null,null,null,null,"FIRMA DE QUIEN APROBÓ",null,null,null,null,null,null,null,"RADICADO PLANEACION",null,"FIRMA Y SELLO DE QUIEN RECIBE \n\nSECRETARÍA DE PLANEACIÓN"]
[null,null,"NOMBRE",null,"LUZ YENNY HERNANDEZ ELAICA",null,null,null,null,"NOMBRE","ROSA JAZMIN DE ARMAS MONTAÑO",null,null,null,null,"NOMBRE",null,"LUIS FERNANDO VARGAS PEÑA ",null,null,null,null,null,null,null,"TIPO"]
[null,null,"TELÉFONO",null,3213580733,null,null,null,null,"TELÉFONO",3144425031,null,null,null,null,"TELÉFONO",null,3212787156,null,null,null,null,null,null,null,"CONSECUTIVO"]
[null,null,"CORREO",null,"Luzyennyedc@hotmail.com",null,null,null,null,"CORREO","subdireccionfinanciera@imdervillavicencio.gov.co",null,null,null,null,"CORREO",null,"direccion@imdervillavicencio.gov.co",null,null,null,null,null,null,null,"FECHA"]
[null,null,"CARGO",null,"Profesional Especializado de Planeacion IMDER- Contratista",null,null,null,null,"CARGO","Subdirectora Administrativa y Financiera",null,null,null,null,"CARGO",null,"Director",null,null,null,null,null,null,null,"NO. FOLIOS"]
[null,null,"FECHA ",null,"2020-10-15",null,null,null,null,"FECHA ","2020-10-15",null,null,null,null,"FECHA ",null,"2020-10-15",null,null,null,null,null,null,null,"MEDIO MAGNÉTICO"]

{"sheet":"Hoja1","index":1,"n_rows":30,"n_cols":7,"rows_kept":30,"cut":false,"hidden":true,"merged":[]}
[]
["ENERO A MARZO"]
["ABRIL A JUNIO"]
["JULIO A SEPTIEMBRE"]
["OCTUBRE A DICIEMBRE"]
[]
[]
[]
[]
["ENTIDAD","ALCALDÍA_DE_VILLAVICENCIO","INSTITUTO_DE_TURISMO","CORPORACIÓN_CULTURAL_CORCUMVI","EMPRESA_DE_ACUEDUCTO_Y_ALCANTARILLADO_EAAV","INSTITUTO_DE_DEPORTE_Y_RECREACIÓN_IMDER","VILLAVIVIENDA"]
[null,null,"N.A.","N.A.","N.A.","N.A.","N.A."]
["ALCALDÍA_DE_VILLAVICENCIO","SECRETARIA DE MOVILIDAD"]
["INSTITUTO_DE_TURISMO","SECRETARIA DE COMPETITIVIDAD Y DESARROLLO"]
["CORPORACIÓN_CULTURAL_CORCUMVI","SECRETARIA DE MEDIO AMBIENTE"]
["EMPRESA_DE_ACUEDUCTO_Y_ALCANTARILLADO_EAAV","SECRETARIA DE CONTROL FÍSICO"]
["INSTITUTO_DE_DEPORTE_Y_RECREACIÓN_IMDER","SECRETARA DE GESTIÓN SOCIAL Y PARTICIPACIÓN CIUDADANA"]
["VILLAVIVIENDA","SECRETARIA DE LA MUJER"]
[null,"SECRETARIA DE EDUCACIÓN"]
[null,"SECRETARIA DE SALUD"]
[null,"SECRETARIA DE HACIENDA"]
[null,"SECRETARIA DE DESARROLLO INSTITUCIONAL"]
[null,"SECRETARIA DE GOBIERNO Y POSTCONFLICTO"]
[null,"SECRETARIA DE LAS TECNOLOGÍAS Y DE LA INFORMACIÓN Y COMUNICACIÓN TICS"]
[null,"OFICINA GESTIÓN DEL RIESGO"]
[null,"SECRETARIA DE INFRAESTRUCTURA"]
[null,"SECRETARIA DE PLANEACION"]
[null,"OFICINA ASESORIA JURIDICA"]
[null,"OFICINA DE CONTRATACION "]
[null,"OFICINA DE CONTROL INTERNO DE GESTION"]
[null,"OFICINA DE CONTROL INTERNO DISCIPLINARIO"]

{"sheet":"INSTRUCCIONES","index":2,"n_rows":24,"n_cols":33,"rows_kept":24,"cut":false,"hidden":false,"merged":[[0,19,0,20],[0,22,0,23],[0,25,0,27],[0,28,0,31],[23,15,23,16],[23,30,23,31],[3,17,3,18],[3,20,4,20],[3,21,4,21],[3,22,3,23],[3,24,3,25],[3,27,4,27],[6,31,21,31],[6,20,21,20],[6,21,21,21],[6,22,15,22],[6,23,21,23],[6,24,15,24],[3,3,4,3],[3,4,4,4],[3,8,4,8],[3,9,4,9],[3,10,4,10],[3,11,4,11],[3,12,4,12],[3,15,4,15],[2,15,2,20],[2,22,2,27],[2,28,2,29],[3,28,3,29],[6,0,21,0],[6,1,21,1],[6,2,21,2],[6,3,21,3],[6,4,21,4],[3,16,4,16],[3,0,4,0],[3,1,4,1],[3,2,4,2],[6,15,21,16],[6,17,10,18],[6,11,21,11],[0,0,0,1],[0,2,0,8],[0,10,0,14],[0,16,0,18],[7,12,21,12],[6,13,21,13],[6,14,21,14],[6,5,10,5],[6,8,21,8],[6,9,21,9],[6,6,10,6],[6,10,21,10],[1,0,1,1],[1,2,1,32],[2,0,2,4],[2,10,2,14],[6,32,21,32],[2,30,2,32],[6,25,21,25],[6,27,21,27],[6,28,21,28],[6,29,14,29],[6,30,21,30],[3,30,3,31]]}
["ENTIDAD ",null,null,null,null,null,null,null,null,"SECTOR",null,null,null,null,null,"VIGENCIA",null,null,null,"FORMULACION",null,null,"SEGUIMIENTO",null,null,"PERIODO DE SEGUIIENTO"]
[null,null,"Utilice este boton solo cuando necesite agregar mas filas."]
["IDENTIFICACION CON EL PLAN DE DESARROLLO 20XX - 20XX",null,null,null,null,null,null,null,null,null,null,null,null,null,null,"INFORMACION FISICA DEL PROYECTO",null,null,null,null,null,null,null,null,null,null,null,null,"INFORMACION POBLACION ",null,"INFORMACION INSTITUCIONAL DEL PROYECTO"]
["EJE ESTRATEGICO"," PROGRAMA","SUBPROGRAMA","META PDM","NOMBRE DEL INDICADOR META PRODUCTO PDM \n","CANTIDAD PROGRAMADA PARA LA VIGENCIA    (QP)","CANTIDAD EJECUTADA PARA LA VIGENCIA   (QE)","% AVANCE DE EJECUCIÓN META PDM VIGENCIA","Nº REGISTRO BPPV  ","NOMBRE DEL  PROYECTO REGISTRADO","OBJETIVO","ESTRATEGIA","ESTADO DEL PROYECTO","FECHA DE INICIO DE EJECUCION DEL PROYECTO VIGENCIA","FECHA DE TERMINACION DE EJECUCION DEL PROYECTO VIGENCIA ","NOMBRE DEL INDICADOR  DEL PROYECTO","UNIDAD DE MEDIDA","MEDICIÓN INDICADOR DEL PROYECTO",null,"% INDICE DE AVANCE FISICO (b) * 100 /(a)","JUSTIFICACIÓN DE AVANCE DEL PROYECTO ","VALOR PRESUPUESTO INICIAL","PROGRAMACION PRESUPUESTAL",null,"EJECUCION PRESUPUESTAL",null,"%  INDICE DE AVANCE FINANCIERO          (ep)*100/ (pi)","JUSTIICACION AVACE FINANCIERO","POBLACION BENEFICIADA Y/O ATENDIDA ",null,"RESPONSABLES",null,"OBSERVACIONES AL PROYECTO "]
[null,null,null,null,null,"20XX","20XX "," 20XX",null,null,null,null,null," 20XX","20XX",null,null,"CANTIDAD PROGRAMADA (a)       ","CANTIDAD EJECUTADA (b) ","     (ifc )",null,null,"VALOR $      (pi)","FUENTE DE FINANCIACION","VALOR $     ( ep )","FUENTE DE FINANCIACION","(iep)",null,"UNIDAD","CANTIDAD","ENTIDAD \nEJECUTORA","COORDINADO CON OTRA ENTIDAD","20XX"]
[1,2,3,4,5,6,7,8,9,10,11,12,13,14,15,16,17,18,19,20,21,22,23,24,25,26,27,28,29,30,31,32,33]
["COLUMNA 1\nSon la primera y segunda division en la estructura del Plan de Desarrollo.\n\nEjemplo:\n6. Eje estrategico social\n6.1 Sector Educaciona","COLUMNA 2 \nAquí se relaciona la tercera escala de la estructura del Plan de Desarrollo\n\nEjemplo:\n6.1.3 Programa: unidos por el acceso y permanencia con equidad e inclusion.","COLUMNA 3\nAquí se relaciona el cuarto nivel estructural del Plan de Desarrollo \n\nEjemplo:\n6.1.3.1 Subprograma: Cobertura educativa","COLUMNA 4\nSon las acciones con las que se desarrollara cada uno de los subprogramas y que se relacionan en la Matriz Estrategica del Acuerdo de Adopcion del Plan de Desarrollo Vigente.\n\nEjemplo:\nMeta 4: Modernizacion de la Secretaria de Educacion de Villavicencio\n","COLUMNA 5\nLo encontraremos en la Matriz Estrategica en la columna denominada INDICADOR DE PRODUCTO\n\nEjemplo:\nNúmero de procesos administrativos de modernización y actualización desarrollados por la Secretaria de Educacion Municipal","COLUMNA 6\nCorresponde al nivel programado para el indicador de producto en la vigencia que se reporta\n\nEjemplo: \n4","COLUMNA 7\nCorresponde al nivel de avance o ejecucion del indicador de producto en la vigencia y/o periodo que se reporta\n\nEjemplo: ",{"$f":"IF(F7=0,\"0\",IFERROR(G7/F7,0))","v":0},"COLUMNA 9\nEscriba el codigo de registro SSEPI, del proyecto , dado por el Banco de Programas y Proyectos.","COLUMNA 10\nEscriba el nombre del proyecto de Inversión, tal como quedó registrado en el Banco de programas y Proyectos.","COLUMNA 11\nVer ficha EBI numeral 5  \" Objetivo General del Proyecto\"  de la Metodología General para la identificación, Preparación y Evaluación de Proyectos, del proyecto registrado en el Banco de Programas y proyectos.","COLUMNA 12\nESTRATEGIA:\nConsiste en definir los medios, acciones y recursos para el logro de los objetivos, considerando para ello las condiciones sociales, institucionales,\nadministrativas, políticas y económicas.\n______\nFuente:  Cartilla Plan de Desarrollo 2008-2011 del DNP.",null,"COLUMNA 14\nIndique la fecha de terminación  del ultimo contrato y/o convenio del proyecto.","COLUMNA 15\nIndique la fecha de terminación  del ultimo contrato y/o convenio del proyecto.","Columnas 16 y 17 relacione el indicador de producto del proyectoy la unidad de medida en la que se realiza la medicion",null,"Columnas 18 y 19\nIngrese los datos correspondientes a las cantidades programadas  y cantidades ejecutadas",null,{"$f":"IF(R7=0,\"0\",IFERROR(S7/R7,0))","v":0},"COLUMNA 21\nIndique las razones por las cuales el % de Indice de avance físico, se encuentra por debajo y/o por encima del parámetro evaluador, dado para el periodo analizado y/o evaluado.","COLUMNA 22\nIndique  el valor presupuestal asignado par el proyecto en el POAI","COLUMNA 23\nIndique el valor en pesos ($) de la columa \"APROPIACIÓN DEFINITIVA\" de la ejecución pasiva, a la fecha de corte del Informe solicitado","COLUMNA 24\nIndique el nombre de las diferentes fuentes de financiación.","COLUMNA 25\nValor ejecutado a la fecha de seguimiento","COLUMNA 26\nIndique el nombre de las diferentes fuentes de financiación.",{"$f":"IF(Y7=0,\"0\",IFERROR(Y7/W7,0))","v":0},"COLUMNA 31\nIndique las razones por las cuales el % Indice de avance Financiero, está por debajo y/o por encima del parámetro evaluador, dado para el periodo analizado y/o evaluado.","COLUMNA 29\nNUMERO (Se refiere a las personas beneficiadas por el proyecto)","COLUMNA 30\nFormulada para sumatoria de la informacion de poblacion.","COLUMNA 31\nSe relaciona la Direccion, Secretaria, Oficina, Ente desentralizado o Dependencia que EJECUTA y tiene a cargo el proyecto.","COLUMNA 32\nSe relaciona la Direccion, Secretaria, Oficina, Ente desentralizado o Dependencia que APOYA A LA ENTIDAD EJECUTORA (Si es el caso).","COLUMNA 33\nObservaciones de como va el proyecto si continua o no o las razones de como se enuentra."]
[null,null,null,null,null,null,null,"0",null,null,null,null,"COLUMNA 13\nEl proyecto se puede encontrar en uno de los sigueintes estados en e l momento de formulación y/o seguimiento del Plan de Acción:\n\n- EN EJECUCION \n- EN PERFIL\n(El Proyecto, se encuentra evaluado y registrado) y/o\n- EJECUTADO\n",null,null,null,null,null,null,{"$f":"IF(R8=0,\"0\",IFERROR(S8/R8,0))","v":"0"},null,null,null,null,null,null,{"$f":"IF(Y8=0,\"0\",IFERROR(Y8/W8,0))","v":"0"}]
[null,null,null,null,null,null,null,"0",null,null,null,null,null,null,null,null,null,null,null,"0",null,null,null,null,null,null,"0"]
[null,null,null,null,null,null,null,"0",null,null,null,null,null,null,null,null,null,null,null,"0",null,null,null,null,null,null,"0"]
[null,null,null,null,null,null,null,"0",null,null,null,null,null,null,null,null,null,null,null,"0",null,null,null,null,null,null,"0"]
[null,null,null,null,null,10,20,2,null,null,null,null,null,null,null,null,null,10,20,2,null,null,null,null,null,null,"0"]
[null,null,null,null,null,10,18,1.8,null,null,null,null,null,null,null,null,null,10,18,1.8,null,null,null,null,null,null,"0"]
[null,null,null,null,null,10,15,1.5,null,null,null,null,null,null,null,null,null,10,15,1.5,null,null,null,null,null,null,"0"]
[null,null,null,null,null,10,13,1.3,null,null,null,null,null,null,null,null,null,10,13,1.3,null,null,null,null,null,null,"0"]
[null,null,null,null,null,10,11,1.1000000000000001,null,null,null,null,null,null,null,null,null,10,11,1.1000000000000001,null,null,null,null,null,null,"0",null,null,60]
[null,null,null,null,null,10,10,1,null,null,null,null,null,null,null,null,null,10,10,1,null,null,500000,null,200000,null,0.4,null,null,0]
[null,null,null,null,null,10,8,0.8,null,null,null,null,null,null,null,null,null,10,8,0.8,null,null,null,null,null,null,"0",null,null,0]
[null,null,null,null,null,10,7,0.7,null,null,null,null,null,null,null,null,null,10,7,0.7,null,null,null,null,null,null,"0",null,null,0]
[null,null,null,null,null,10,5,0.5,null,null,null,null,null,null,null,null,null,10,5,0.5,null,null,null,null,null,null,"0",null,null,0]
[null,null,null,null,null,10,3,0.3,null,null,null,null,null,null,null,null,null,10,3,0.3,null,null,null,null,null,null,"0",null,null,0]
[null,null,null,null,null,10,0,0,null,null,null,null,null,null,null,null,null,10,0,0,null,null,null,null,null,null,"0",null,null,0]
["p",null,null,null,null,null,null,"0",null,null,null,null,null,null,null,null,null,null,null,"0",null,null,null,null,null,null,"0",null,null,{"$f":"#REF!+#REF!","v":{"$error":"#REF!"}}]
["TOTAL ",null,null,null,null,{"$f":"SUM(F7:F22)","v":110},{"$f":"SUM(G7:G22)","v":110},1,null,null,null,null,null,null,null,null,null,{"$f":"SUM(R7:R23)","v":110},{"$f":"SUM(S7:S23)","v":110},1,null,null,{"$f":"SUM(W17:W23)","v":500000},null,{"$f":"SUM(Y7:Y23)","v":200000},null,0.4,null,null,{"$f":"SUM(AD16:AD22)","v":60}]

{"sheet":"Hoja2","index":3,"n_rows":21,"n_cols":2,"rows_kept":21,"cut":false,"hidden":true,"merged":[]}
["ESTADO DEL PROYECTO","UNIDAD DE MEDIDA"]
[]
["EJECUCION","HECTAREAS"]
["SIN EJECUCION","KILOMETROS "]
["CERRADO","KILOMETROS2"]
["SUSPENDIDO","METRO"]
["EN CONVENIO","METRO2"]
["FASE 1 OCAD","METRO3"]
["FASE 2 OCAD","KILOVATIOS"]
["FASE 3 OCAD","MES"]
["INSCRITO","SEMANA"]
[null,"NUMERO"]
[null,"PESO"]
[null,"MONEDA/CORRIENTE"]
[null,"PORCENTAJE"]
[null,"TONELADA"]
[null,"UNIDAD "]
[null,"HOGARES"]
[null,"FAMILIAS"]
[null,"PERSONAS"]
[null,"PREDIOS"]